Cogmind - Beta 15 @@@ ROGUE MODE // 2025.06.30 @ 04:13:17 Player: Florist Result: Destroyed by DAS Turret with DAS Cannon Performance ------------- Evolutions (1) 500 Regions Visited (4) 800 Robots Destroyed (64) 320 Value Destroyed (1162) 1162 Prototype IDs (4) 80 Alien Tech Used (0) 0 Bonus (106) 106 TOTAL SCORE: 2968 Bonus ------- Follower Combat Kills 106 Cogmind --------- Core Integrity 0/400 Matter 255/300 Energy 89/100 System Corruption 0% Temperature Cool (0) Movement Core (750) Ox14 Location -9/Exiles Parts ------- > --- POWER (1) -------- (None) > --- PROPULSION (3) --- (None) > --- UTILITY (3) ------ High-capacity Storage Unit Core Shielding Core Shielding > --- WEAPON (2) ------- Light Assault Rifle > --- INVENTORY (20) --- Advanced Myomer Leg Advanced Myomer Leg Improved Targeting Computer Core Shielding Light Armor Plating Peak State ------------ > --- POWER ------------ Cooled Ion Engine > --- PROPULSION ------- Armored Treads Advanced Myomer Leg Advanced Myomer Leg > --- UTILITY ---------- Experimental Heat Sink High-capacity Storage Unit Core Shielding > --- WEAPON ----------- Light Assault Rifle Light Assault Rifle > --- INVENTORY -------- Improved Targeting Computer Core Shielding Core Shielding Light Assault Rifle Rocket Launcher [Rating: 33] Favorites ----------- Power Cooled Ion Engine Engine Cooled Ion Engine Propulsion Light Treads Treads Light Treads Leg Advanced Myomer Leg Utility High-capacity Storage Unit Device Seismic Detector Storage High-capacity Storage Unit Protection Light Armor Plating Weapon Assault Rifle Energy Gun Improved Medium Laser Ballistic Gun Assault Rifle Launcher Rocket Launcher Impact Weapon Heavy Hammer Build | -11 -10 -9 -9 -9 ------- Run | Yrd Mat Mat Min Exi Slots Evolved 2 | . . 2 . . Power . | . . . . . Propulsion 1 | . . 1 . . Utility 1 | . . 1 . . Weapon . | . . . . . Parts Attached 54 | 7 8 20 2 17 Power 3 | 1 1 1 . . Engine 3 | 1 1 1 . . Core . | . . . . . Reactor . | . . . . . Propulsion 22 | 2 1 13 1 5 Treads 20 | 2 1 13 1 3 Leg 2 | . . . . 2 Wheel . | . . . . . Hover . | . . . . . Flight . | . . . . . Utility 16 | 2 3 3 . 8 Device 3 | 1 . 1 . 1 Storage 5 | 1 3 . . 1 Processor . | . . . . . Hackware . | . . . . . Protection 8 | . . 2 . 6 Artifact . | . . . . . Weapon 13 | 2 3 3 1 4 Energy Gun 3 | . 1 2 . . Energy Cannon . | . . . . . Ballistic Gun 7 | 2 1 1 . 3 Ballistic Cannon . | . . . . . Launcher 2 | . . . 1 1 Special Weapon . | . . . . . Impact Weapon 1 | . 1 . . . Slashing Weapon . | . . . . . Piercing Weapon . | . . . . . Special Melee Weapon . | . . . . . Unidentified Prototypes 4 | . 1 1 . 2 Corrupted Parts 1 | . 1 . . . System Corruption 1 | . 1 . . . Parts Lost 21 | . . 1 . 20 Power 1 | . . . . 1 Propulsion 8 | . . . . 8 Utility 5 | . . 1 . 4 Weapon 7 | . . . . 7 Highest Loss Streak 7 | . . 1 . 7 To Critical Strikes 5 | . . . . 5 Average Backups 17 | 2 16 19 20 16 Power . | . . . . . Propulsion 4 | 1 4 4 5 3 Utility 6 | . 6 6 8 6 Weapon 5 | . 5 6 7 5 Tool/Special . | . . . . . Unused Backups 23 | . 5 7 . 11 Power 4 | . 1 . . 3 Propulsion 4 | . 3 1 . . Utility 12 | . 1 3 . 8 Weapon 3 | . . 3 . . Tool/Special . | . . . . . Average Slot Usage (%) 99 | . 99 99 100 97 Engine 12 | . 14 11 11 11 Treads 30 | . 28 33 33 30 Device 12 | . 13 15 11 8 Storage 12 | . 14 11 11 11 Protection 6 | . . 5 11 12 Energy Gun 4 | . . 13 . . Ballistic Gun 18 | . 26 8 21 21 Peak Build Rating 33 | 7 12 19 17 33 Average Rating 14 | 5 8 17 16 17 On Entrance 10 | . 7 12 16 17 Naked Turns . | . . . . . Heaviest Build 61 | 12 54 59 59 61 Greatest Support 63 | 40 40 60 63 63 Greatest Overweight (x) 2 | . 1 . . 2 Average Overweight (x) . | . . . . . Largest Inventory Capacity 30 | 8 30 20 20 20 Average Capacity 19 | 7 18 20 20 20 Most Carried 20 | 4 20 20 20 20 Average Carried 17 | 2 16 19 20 16 Final Capacity 20 | 8 20 20 20 20 Final Carried 20 | 4 20 20 20 5 Class Distribution -------------------- 68% | Mutant 31% | Scavenger-Mutant Dominant Class ---------------- Mutant | -10/Materials Mutant | -9/Materials Scavenger-Mutant | -9/Mines Mutant | -9/Exiles Resources | -11 -10 -9 -9 -9 ----------- Run | Yrd Mat Mat Min Exi Matter Collected 1708 | 250 506 478 82 392 Remotely . | . . . . . Salvage Created 2344 | 112 528 1544 13 147 Parts 138 | 12 34 83 4 5 Haulers Intercepted 7 | . 2 5 . . Recyclers Shooed 4 | . 1 3 . . Parts Field Recycled . | . . . . . Retrieved Matter . | . . . . . Parts Self-Destructed . | . . . . . Prevented . | . . . . . Kills | -11 -10 -9 -9 -9 ------- Run | Yrd Mat Mat Min Exi Combat Hostiles Destroyed 38 | . 8 24 2 4 Guns 34 | . 8 23 . 3 AOE 3 | . . . 2 1 Classes Destroyed 13 | 2 8 2 . 1 Worker 2 | . 1 1 . . Tunneler 3 | 2 1 . . . Hauler 7 | . 2 5 . . Recycler 6 | 1 . 5 . . Mechanic 1 | . 1 . . . Operator 4 | . 3 1 . . Watcher 6 | . 2 4 . . Swarmer 15 | . 3 10 2 . Grunt 9 | . 4 5 . . Brawler 1 | . . 1 . . Sentry 8 | . . 8 . . Subdweller 1 | . 1 . . . Assembled 3 | . . . . 3 Best Kill Streak 6 | 2 5 6 2 2 Combat Bots Only 4 | . 4 4 2 2 Max Kills in Single Turn 2 | 1 1 1 2 1 Gunslinging . | . . . . . Exploded 2 | . . . 2 1 Melee . | . . . . . Uniques/NPCs Destroyed 1 | . . . . 1 8R-AWN (-9/Exiles) Combat | -11 -10 -9 -9 -9 -------- Run | Yrd Mat Mat Min Exi Hostile Shots Fired 319 | . 27 105 9 178 Missed 81 | . 10 30 4 37 Hits 238 | . 17 75 5 141 Melee 1 | . . . . 1 Projectile 237 | . 17 75 5 140 AOE 2 | . . . 2 . Critical Strikes 45 | . . 3 . 42 Actively Blocked 7 | . . 1 . 6 Damage Taken 4379 | . 161 945 96 3177 Core 491 | . 36 45 11 399 Absorbed by Shields . | . . . . . Redirected to Shielding 67 | . . 3 . 64 Core Remaining (%) 92 | 100 85 . . . Volleys Fired 305 | 10 92 123 3 77 Largest 2 | 2 2 2 2 2 Hottest 112 | 40 85 112 53 43 Shots Fired 597 | 20 184 246 6 141 Gun 590 | 20 184 246 4 136 Cannon . | . . . . . Launcher 7 | . . . 2 5 Special . | . . . . . Kinetic 412 | 20 183 69 4 136 Thermal 178 | . 1 177 . . Explosive 7 | . . . 2 5 Electromagnetic . | . . . . . Robot Hit Streak 31 | 11 12 31 1 18 Robot Miss Streak 5 | 2 5 5 3 4 Penetration Max . | . . . . . Secondary Targets 5 | . 1 2 . 2 Max Gunslinging Chain 1 | . 1 1 . 1 Shots Hit Robots 394 | 15 98 164 1 116 Core Hits 125 | 6 35 55 5 24 Critical Kills 1 | . 1 . . . Critical Parts Destroyed . | . . . . . Critical Strikes 9 | . 1 6 . 2 Burn 6 | . . 6 . . Destroy 3 | . 1 . . 2 Melee Attacks 5 | . 5 . . . Impact 5 | . 5 . . . Slashing . | . . . . . Piercing . | . . . . . Sneak Attacks . | . . . . . Combat Hostiles . | . . . . . Follow-up Attacks . | . . . . . Damage Inflicted 5172 | 159 1044 2542 224 1203 Guns 4869 | 159 1044 2542 . 1124 Cannons . | . . . . . Explosions 303 | . . . 224 79 Melee . | . . . . . Ramming . | . . . . . Kinetic 2859 | 159 1027 549 . 1124 Thermal 2010 | . 17 1993 . . Explosive 303 | . . . 224 79 Electromagnetic . | . . . . . Impact . | . . . . . Slashing . | . . . . . Piercing . | . . . . . Highest Corruption 1 | . 1 . . . Average Corruption 1 | . 1 . . . Corruption Purged . | . . . . . Corruption Blocked . | . . . . . Overload Shots . | . . . . . Overflow Damage . | . . . . . Projectiles . | . . . . . Explosions . | . . . . . Melee . | . . . . . Knockbacks . | . . . . . Impact . | . . . . . Kinetic . | . . . . . Secondary . | . . . . . Self-Inflicted Damage . | . . . . . Shots . | . . . . . Rammed . | . . . . . Targets Rammed . | . . . . . Kicked . | . . . . . Crushed . | . . . . . Highest Temperature 139 | . 18 139 . 16 Average Temperature 43 | . 9 44 . 16 Received Heat Transfer 447 | . 48 327 12 60 Siege Activations . | . . . . . Martial Activations . | . . . . . Shielding Activations . | . . . . . Robots Disrupted . | . . . . . Combat Hostiles . | . . . . . Robots Corrupted . | . . . . . Combat Hostiles . | . . . . . Parts Fried . | . . . . . Impact Corruptions . | . . . . . Robots Melted 1 | . . 1 . . Combat Hostiles 1 | . . 1 . . Parts Melted 20 | . 1 19 . . Heat Transferred 4958 | . 37 4921 . . Parts Sabotaged . | . . . . . Parts Stolen . | . . . . . Parts Stripped . | . . . . . Power Chain Reactions . | . . . . . Alert | -11 -10 -9 -9 -9 ------- Run | Yrd Mat Mat Min Exi Maximum Alert Level 1 | . . 1 . . Low Security (%) 82 | 100 100 55 100 . Level 1 17 | . . 44 . . Level 2 . | . . . . . Level 3 . | . . . . . Level 4 . | . . . . . Level 5 . | . . . . . High Security . | . . . . . Max Security . | . . . . . Peak Influence 269 | 10 90 269 138 . Initial 69 | . . 10 69 . Average 75 | 1 8 171 33 . Influence Increases 1220 | 15 268 769 168 . Destroy 0b10 Robot/C 740 | . 140 480 120 . Destroy 0b10 Robot/NC 145 | 15 50 80 . . Destroy Leader 226 | . 58 148 20 . Allied During Kill 21 | . . . 21 . Disable Machine 15 | . 15 . . . Destroy Structure 13 | . 5 1 7 . Lose Combat Pursuer 60 | . . 60 . . Influence Decreases 1220 | 15 242 616 321 26 Entered New Map 152 | . . 16 110 26 Time Decay 1038 | 15 242 590 191 . Lost Part 10 | . . 10 . . Lost Ally 20 | . . . 20 . Squads Dispatched 5 | . 5 . . . Investigation 2 | . 2 . . . Extermination . | . . . . . Reinforcement 3 | . 3 . . . Assault . | . . . . . Garrison . | . . . . . Intercept . | . . . . . Searches Triggered . | . . . . . Construction Impeded . | . . . . . Haulers Reinforced . | . . . . . Active Scanning Responses . | . . . . . Cargo Convoy Interrupts . | . . . . . Stealth | -11 -10 -9 -9 -9 --------- Run | Yrd Mat Mat Min Exi Distress Signals 5 | . 2 3 . . Communications Jammed . | . . . . . Distress Signals . | . . . . . Times Spotted 83 | . 34 30 7 12 Peak Tracking Total 14 | . 5 5 6 14 Tactical Retreats 5 | . 1 3 . 1 Traps | -11 -10 -9 -9 -9 ------- Run | Yrd Mat Mat Min Exi Traps Triggered 1 | . 1 . . . Indirectly . | . . . . . Trap Hack Attempts . | . . . . . Triggered . | . . . . . Disarmed . | . . . . . Reprogrammed . | . . . . . Reused . | . . . . . Traps Extracted . | . . . . . Installed . | . . . . . Triggered . | . . . . . Machines | -11 -10 -9 -9 -9 ---------- Run | Yrd Mat Mat Min Exi Machines Disabled 4 | . 1 . . 3 Max in Single Turn 1 | . 1 . . 1 Machines Repaired . | . . . . . Machines Dismantled . | . . . . . Machines Sabotaged . | . . . . . Overloaded Fab Kills . | . . . . . Hacking | -11 -10 -9 -9 -9 --------- Run | Yrd Mat Mat Min Exi Machines Accessed 6 | . 3 2 . 1 Terminals 3 | . 2 1 . . Fabricators . | . . . . . Repair Stations . | . . . . . Recycling Units 2 | . 1 1 . . Scanalyzers . | . . . . . Garrison Access . | . . . . . Total Hacks 14 | . 9 4 . 1 Successful 7 | . 3 3 . 1 Failed 7 | . 6 1 . . Catastrophic . | . . . . . Database Lockouts . | . . . . . Manual 7 | . 4 3 . . Terminals 7 | . 6 1 . . Fabricators . | . . . . . Repair Stations . | . . . . . Recycling Units 6 | . 3 3 . . Scanalyzers . | . . . . . Garrison Access . | . . . . . Terminal Hacks 2 | . 1 . . 1 Record 1 | . . . . 1 Dispatch Records 1 | . 1 . . . Fabricator Hacks . | . . . . . Repair Station Hacks . | . . . . . Recycling Unit Hacks 2 | . 1 1 . . Retrieve Components 2 | . 1 1 . . Scanalyzer . | . . . . . Garrison Access Hacks . | . . . . . Unauthorized Hacks 3 | . 1 2 . . Terminals 2 | . 1 1 . . Track 2 | . 1 1 . . Fabricators . | . . . . . Repair Stations . | . . . . . Recycling Units 1 | . . 1 . . Reject 1 | . . 1 . . Scanalyzers . | . . . . . Garrison Access . | . . . . . Data Cores Recovered 1 | . . 1 . . Used . | . . . . . Hacking Detections 2 | . 2 . . . Full Trace Events 1 | . 1 . . . Feedback Events . | . . . . . Feedback Blocked . | . . . . . Robot Schematics Acquired . | . . . . . Robots Built . | . . . . . Authchips . | . . . . . Time . | . . . . . Total Robot Build Rating . | . . . . . Part Schematics Acquired . | . . . . . Parts Built . | . . . . . Authchips . | . . . . . Time . | . . . . . Total Part Build Rating . | . . . . . Parts Repaired . | . . . . . Time . | . . . . . Parts Recycled . | . . . . . Recycled Matter . | . . . . . Retrieved Matter . | . . . . . Retrieved Components 13 | . 3 10 . . Parts Scanalyzed . | . . . . . Part Schematics Acquired . | . . . . . Parts Damaged . | . . . . . Bothacking | -11 -10 -9 -9 -9 ------------ Run | Yrd Mat Mat Min Exi Used RIF Installer . | . . . . . Robots Hacked . | . . . . . Non-combat . | . . . . . Combat . | . . . . . Robot Hacks Applied . | . . . . . Relay Couplers Released . | . . . . . Fabnet Peak Effective % . | . . . . . Robots Rewired . | . . . . . Allies Hacked . | . . . . . Hacks Repelled . | . . . . . Allies | -11 -10 -9 -9 -9 -------- Run | Yrd Mat Mat Min Exi Total Allies 3 | . . . 3 . Largest Group 3 | . . . 3 2 Highest-Rated Group 40 | . . . 40 32 Highest-Rated Ally 16 | . . . 16 16 Total Orders 3 | . . . 2 1 STAY 2 | . . . 1 1 FOLLOW 1 | . . . 1 . Ally Attacks 23 | . . . 16 7 Total Damage 235 | . . . 201 34 Kills 4 | . . . 4 . Allies Corrupted . | . . . . . Allies Melted . | . . . . . Intel | -11 -10 -9 -9 -9 ------- Run | Yrd Mat Mat Min Exi Active Infowar (turns) 3856 | 57 2319 1480 . . Seismic 3856 | 57 2319 1480 . . Robot Analysis Total . | . . . . . Derelict Logs Recovered 3 | . . . 3 . Drone Launches . | . . . . . Drone Recoveries . | . . . . . Exploration | -11 -10 -9 -9 -9 ------------- Run | Yrd Mat Mat Min Exi Turns Passed 7087 | 150 2330 2182 936 1489 Spaces Moved 2959 | 70 841 1014 292 742 Core 3 | 3 . . . . Treads 2942 | 67 841 1014 292 728 Legs 14 | . . . . 14 Wheels . | . . . . . Hover . | . . . . . Flight . | . . . . . Fastest Speed 50 | 50 160 160 160 120 Average Speed 176 | 155 214 160 160 163 Slowest Speed 330 | 160 240 163 160 330 Overloaded Moves . | . . . . . Propulsion Burnouts . | . . . . . Robots Hopped . | . . . . . Potential Cave-ins . | . . . . . Cave-ins Triggered . | . . . . . Exploration Rate (%) 57 | 5 94 60 61 69 Regions Visited 4 Branch Regions 2 Pre-discovered Areas 2 | . . . 1 1 Known Exits Taken . | . . . . . Unknown Exits Taken 4 | 1 1 1 1 . Scrap Searched 1 | . . . 1 . Spaces Dug 4 | . 4 . . . Terrain Destroyed 29 | . 4 . 8 17 Melee 4 | . 4 . . . Projectile . | . . . . . AOE 25 | . . . 8 17 Terrain Rammed . | . . . . . Walls Destroyed . | . . . . . Machines Disabled . | . . . . . Actions | -11 -10 -9 -9 -9 --------- Run | Yrd Mat Mat Min Exi Total 4278 | 90 1198 1337 756 897 Wait 817 | . 197 140 456 24 Move 2955 | 69 840 1013 291 742 Hop . | . . . . . Pick Up 67 | 4 37 14 1 11 Fast Attach 16 | 7 3 1 . 5 Attach 20 | . . 6 . 14 Detach 3 | . . 1 . 2 Swap 35 | . 11 16 3 5 Drop 55 | . 13 23 2 17 Fire 305 | 10 92 123 3 77 Melee 5 | . 5 . . . Ram . | . . . . . Kick . | . . . . . Crush . | . . . . . Escape Stasis . | . . . . . Rewire . | . . . . . Trap . | . . . . . Miscellaneous . | . . . . . Route ------- -11/Scrapyard -10/Materials (discovered 4 exits: *Mat x3 / [*Min]) -9/Materials (discovered 4 exits: [*Mat x2] / [*Min] / [*Sto]) -9/Mines (discovered 2 exits: [*Mat] / *Exi) -9/Exiles (discovered 1 exit: [*Min]) History --------- Turn | Location | Event 20 | -11/Scrapyard | Discovered new exit (range 15) 151 | -11/Scrapyard | Entered Materials 316 | -10/Materials | Build established: Mutant 396 | -10/Materials | Discovered new exit (range 13) 727 | -10/Materials | Discovered new exit (range 12) 851 | -10/Materials | Derelicts attacked the area 1082 | -10/Materials | Discovered new exit (range 16) 2054 | -10/Materials | Discovered new exit (range 8) 2481 | -10/Materials | Entered another Materials area 2481 | -9/Materials | Evolved 2 slots: Propulsion x1, Utility x1 3204 | -9/Materials | Build established: Scavenger-Mutant 3624 | -9/Materials | Build established: Mutant 3675 | -9/Materials | Discovered new exit (range 8) 3900 | -9/Materials | Discovered new exit (range 10) 4134 | -9/Materials | Discovered new exit (range 8) 4413 | -9/Materials | Build established: Scavenger-Mutant 4477 | -9/Materials | Discovered new exit (range 15) 4663 | -9/Materials | Entered Mines 4712 | -9/Mines | Assembled infested the area 4715 | -9/Mines | Met a Derelict bent on vengeance 4725 | -9/Mines | Learned location of Storage (-9) 4754 | -9/Mines | Assisted by bots powering up and referring to "LRC-V3" 5309 | -9/Mines | Learned Materials terminal intel 5309 | -9/Mines | Discovered new exit (range 12) 5488 | -9/Mines | Learned Materials interactive machine intel 5516 | -9/Mines | Received a Rocket Launcher from a helpful Derelict 5576 | -9/Mines | Deemed a non-threat by the Exiles lab entrance 5576 | -9/Mines | Discovered new exit (range 5) 5599 | -9/Mines | Entered Exiles 5599 | -9/Exiles | Accompanied by 2 allies 5639 | -9/Exiles | Met 8R-AWN 5665 | -9/Exiles | Met EX-HEX 5727 | -9/Exiles | Met EX-DEC 5788 | -9/Exiles | Build established: Mutant 6009 | -9/Exiles | Learned location of Zion (-7) 6051 | -9/Exiles | Met EX-BIN 6220 | -9/Exiles | Discovered new exit (range 14) 6536 | -9/Exiles | Build established: Scavenger-Mutant 6709 | -9/Exiles | Attacked by the Exiles 6783 | -9/Exiles | Lost 6 parts (2n2u2w) 6823 | -9/Exiles | Core integrity fell below 50% 6930 | -9/Exiles | Lost 7 parts (3n2u2w) 6957 | -9/Exiles | Destroyed 8R-AWN 7021 | -9/Exiles | Core integrity fell below 20% 7034 | -9/Exiles | Build established: Mutant 7088 | -9/Exiles | Destroyed by DAS Turret with DAS Cannon Last Messages --------------- 06964_ Extracted 134 matter. 06970_ Acquired Adv. Myomer Leg. 06972_ Acquired 10 matter. 06976_ Dropped Lgt. Armor Plating. 06977_ Acquired Prototype Device. 06977_ Identified Exp. Heat Sink. 06978_ Dropped Exp. Heat Sink. 06980_ Acquired Lgt. Armor Plating. 06983_ Acquired 20 matter. 06996_ Acquired Imp. Treads. 07003_ Acquired 10 matter. 07022_ as-08607 destroyed. 07048_ The unstable cave ceiling collapses. 07063_ Acquired 9 matter. 07072_ Rocket Launcher destroyed. 07072_ Arm. Treads destroyed. 07080_ Cld. Ion Engine destroyed. 07082_ Lgt. Assault Rifle destroyed. 07086_ Imp. Treads destroyed. 07086_ Lgt. Assault Rifle destroyed. Map ----- +----------------------------------------------------+ | ??????????????????????????????????????#" | | ??????????????????????????????????????#" ## | | ??????????????????????????????????????#""""""?# | | ???????????????????????????????????????#"###??# | | ??????????????????????????????????????????????# | | ??????????????????????????????????????????????# | | #????????????????????????????????????????????## | | #????????????#######?????????????????????????#" | | #######??????# "#?????????????????????????#" | | #""##?????# "#?????????????????????????#" | | #?????# "#?????????????????????????#" | | ##???## ""#??????????########???????#" | | #####" ""#??????????# """#???????#" | | ##" ""#??????????#"" """#???????## | | #"" ###??????????#"" #????????# | | "## #????????????#"" #????????#" | | ###### ##???????????#"" "#????????#" | | ?????### "#####???????# ""#????????#" | | ####### !! ## ####????#"" ""#???????##" | | !!"""" %%*! ##???### ###??????##"" | | %!"###"" ### ##??### ###?######"" | | [%!!! #?##" ####X# #"###""""""" | | !!#"#?#" """""" " "" | | !"""" "#"# ##"# % % "" """ " | | #####"### ### #### % " " | | ???# ##?# #??# #?### @ | | ??# #???# #???# #??##; | | ?# #????# #????# #??#; | | # #?????# #?????# #?###; | | #??????# #??????##??? ; % | | #???????# #??????????### """""" | | ????????? #????????????# ######" | | ????????? ????????????? ""##????## | | ????????? ????????????# % """##??????? | | ????????? ????????????# """##???????? | | ????????? ????????????# ""#????????? | | ????????? ????????????#" ########??# | | ?????????????????????? t ## #### | | ??????????????????????# """ | | ??????????????????????# | | ??????????????????????? " | | ???????????????????????## | | ????????????????????????#" " | | ????????????????????????#""" ""## | | ????????????????????????#"" ""#### | | ????????????????????????#" """"##??# | | ?????????????????????????""" """#??## | | ????????????????????????## ""##??#! | | ?????????????????????????#"" """##???#" | | ?????????????????????????##""" ##????#" | +----------------------------------------------------+ Best States ------------- Heat Dissipation 50 Energy Generation 14 Energy Capacity 280 Matter Stores 300 Matter Capacity 300 Sight Range 16 Terrain Scan Density 10 Armor Coverage 225 Core Shielding 20 Evasion (%) 45 Recoil Reduction 3 Item Schematics ----------------- None Robot Schematics ------------------ None Fabricated ------------ Nothing Repaired ---------- Nothing Alien Tech Used ----------------- None Achievements -------------- None Challenges ------------ None Game ------ Seed NodeAngularProcessor Manual? 0 Play Time 00:31:01 Cumulative 145.3 hours Start 2025.06.30 @ 03:41:00 End 2025.06.30 @ 04:13:17 Sessions 1 Manual Loads 0 Difficulty Rogue Special Mode None Game No. 145 Rogue 145 Adventurer 0 Explorer 0 Win Type - Total 9 Types 5/0/2/2/0/0/0/0/0/0 Lore% 64 Gallery% 60 Achievement% 58 Wizard Run 0 Options --------- Layout 1 ASCII 0 Keyboard 0 Movement Numpad Keybinds 0 Fullscreen 1 Font 32/SmallcapsGlow Map View 77x35 Zoom Use 0% Tactical HUD 1 Map Filters NONE Filters NONE Steam 1 RUN: 7c8992a5-2438-4d4b-8193-b8448ca49e4f